bitfinex/quotes_BTCUSD_20230907
["timestamp","ask_amount","ask_price","bid_price","bid_amount"]
[1694110680950,4.0063048,25911.0,25910.0,1.024]
[1694110681164,3.9888448,25911.0,25910.0,1.024]
[1694110681368,3.9907848,25911.0,25910.0,1.04]
[1694110681574,3.9915648,25911.0,25910.0,1.04]
[1694110681779,3.9915648,25911.0,25910.0,1.024]
[1694110681780,3.9898048,25911.0,25910.0,1.024]
[1694110682001,3.9896848,25911.0,25910.0,1.024]
[1694110682245,3.9921048,25911.0,25910.0,1.04]
[1694110682653,3.5849648,25911.0,25910.0,1.04]
[1694110682869,3.5849648,25911.0,25910.0,1.016]
[1694110682870,3.51964672,25911.0,25910.0,1.016]
[1694110683080,3.49775473,25911.0,25910.0,1.016]
[1694110683322,3.26859206,25911.0,25910.0,1.039]
[1694110683748,3.31483455,25911.0,25910.0,1.039]
[1694110683951,3.88935317,25911.0,25910.0,1.039]
[1694110684293,3.8893393,25911.0,25910.0,1.0683128]
[1694110684509,3.8893383,25911.0,25910.0,1.0683128]
[1694110685377,3.49972538,25911.0,25910.0,1.0683128]
[1694110685591,2.44884241,25911.0,25910.0,1.0683128]
[1694110686443,2.26395158,25911.0,25910.0,1.0683128]
[1694110686659,3.03582358,25911.0,25910.0,1.0683128]
[1694110693223,0.39448322,25911.0,25910.0,1.06909461]
[1694110693876,0.39448322,25911.0,25910.0,1.13452676]
[1694110695650,0.00593,25911.0,25910.0,1.13452676]
[1694110695825,0.00593,25911.0,25910.0,2.08170873]
[1694110696531,0.00593,25911.0,25910.0,1.30980673]
[1694110702242,0.03227821,25911.0,25910.0,1.30980673]
[1694110704679,0.48691771,25911.0,25910.0,1.06909461]
[1694110704888,0.51093901,25911.0,25910.0,1.06909461]
[1694110705115,0.48691771,25911.0,25910.0,1.06909461]
[1694110706672,0.62557347,25911.0,25910.0,1.06909461]
[1694110708012,0.91313649,25911.0,25910.0,1.06909461]
[1694110708197,0.6520373,25911.0,25910.0,1.06909461]
[1694110708406,0.55960281,25911.0,25910.0,1.06909461]
[1694110709460,2.3581687,25911.0,25910.0,1.06909461]
[1694110709945,3.36120337,25911.0,25910.0,1.06909461]
[1694110710144,3.36120337,25911.0,25910.0,1.03978181]
[1694110710145,3.56592546,25911.0,25910.0,1.03978181]
[1694110710491,3.56592546,25911.0,25910.0,1.06563784]
[1694110711788,3.53946163,25911.0,25910.0,1.06563784]
[1694110712005,3.43503896,25911.0,25910.0,1.06563784]
[1694110712216,3.88136802,25911.0,25910.0,1.06563784]
[1694110712423,3.60295896,25911.0,25910.0,1.03978181]
[1694110712636,3.60139896,25911.0,25910.0,1.03978181]
[1694110712880,3.87854802,25911.0,25910.0,1.03978181]
[1694110713102,3.87788802,25911.0,25910.0,1.03978181]
[1694110713307,3.87824802,25911.0,25910.0,1.03978181]
[1694110713516,3.59605896,25911.0,25910.0,1.03978181]
[1694110713723,3.59521896,25911.0,25910.0,1.03978181]
[1694110713935,3.59497896,25911.0,25910.0,1.03978181]
[1694110714146,3.59509896,25911.0,25910.0,1.03978181]
[1694110714349,3.87218802,25911.0,25910.0,1.03978181]
[1694110714581,3.59437896,25911.0,25910.0,1.03978181]
[1694110714789,3.59407896,25911.0,25910.0,1.03978181]
[1694110715010,3.87128802,25911.0,25910.0,1.03978181]
[1694110715227,3.87458802,25911.0,25910.0,1.03978181]
[1694110715432,5.21014002,25911.0,25910.0,1.03978181]
[1694110715647,5.09088541,25911.0,25910.0,1.03978181]
[1694110715863,5.09064541,25911.0,25910.0,1.03978181]
[1694110716068,5.08890541,25911.0,25910.0,1.03978181]
[1694110716281,5.08764541,25911.0,25910.0,1.03978181]
[1694110716487,5.09280541,25911.0,25910.0,1.03978181]
[1694110716689,5.08236541,25911.0,25910.0,1.03978181]
[1694110716919,5.08182541,25911.0,25910.0,1.03978181]
[1694110717122,5.23618741,25911.0,25910.0,1.03978181]
[1694110717317,5.51366912,25911.0,25910.0,1.03978181]
[1694110717554,5.21957467,25911.0,25910.0,1.03978181]
[1694110717787,5.21873467,25911.0,25910.0,1.03978181]
[1694110717962,5.21867467,25911.0,25910.0,1.03978181]
[1694110718172,5.21849467,25911.0,25910.0,1.03978181]
[1694110718379,5.21837467,25911.0,25910.0,1.03978181]
[1694110718577,5.21801467,25911.0,25910.0,1.03978181]
[1694110718902,5.21735467,25911.0,25910.0,1.03978181]
[1694110719125,5.21717467,25911.0,25910.0,1.03978181]
[1694110719326,5.22083467,25911.0,25910.0,1.03978181]
[1694110719534,5.21963467,25911.0,25910.0,1.03978181]
[1694110719738,5.21789467,25911.0,25910.0,1.03978181]
[1694110719926,5.20781467,25911.0,25910.0,1.03978181]
[1694110720126,5.20811467,25911.0,25910.0,1.03978181]
[1694110720391,5.20823467,25911.0,25910.0,1.03978181]
[1694110720596,5.20799467,25911.0,25910.0,1.03978181]
[1694110720771,5.20727467,25911.0,25910.0,1.03978181]
[1694110721075,5.20781467,25911.0,25910.0,1.03978181]
[1694110721324,5.20691467,25911.0,25910.0,1.03978181]
[1694110721528,5.20679467,25911.0,25910.0,1.03978181]
[1694110721713,5.20811467,25911.0,25910.0,1.03978181]
[1694110721865,5.20661467,25911.0,25910.0,1.03978181]
[1694110722066,5.20649467,25911.0,25910.0,1.03978181]
[1694110722264,5.20613467,25911.0,25910.0,1.03978181]
[1694110722496,5.20577467,25911.0,25910.0,1.03978181]
[1694110722697,5.20613467,25911.0,25910.0,1.03978181]
[1694110722902,5.20577467,25911.0,25910.0,1.03978181]
[1694110723139,5.20565467,25911.0,25910.0,1.03978181]
[1694110723310,5.20559467,25911.0,25910.0,1.03978181]
[1694110723475,5.20535467,25911.0,25910.0,1.03978181]
[1694110723678,5.20469467,25911.0,25910.0,1.03978181]
[1694110724075,5.20421467,25911.0,25910.0,1.03978181]
[1694110724511,5.20385467,25911.0,25910.0,1.03978181]
[1694110724721,5.20349467,25911.0,25910.0,1.03978181]
[1694110724909,4.48473296,25911.0,25910.0,1.03978181]
[1694110725052,4.48335296,25911.0,25910.0,1.03978181]
[1694110725256,4.48395296,25911.0,25910.0,1.03978181]
[1694110725455,4.48473296,25911.0,25910.0,1.03978181]
[1694110725676,4.48497296,25911.0,25910.0,1.03978181]
[1694110725882,4.51795886,25911.0,25910.0,1.03978181]
[1694110726104,4.51801886,25911.0,25910.0,1.03978181]
[1694110726307,4.05856594,25911.0,25910.0,1.03978181]
[1694110726513,4.12360594,25911.0,25910.0,1.03978181]
[1694110726731,4.05856594,25911.0,25910.0,1.03978181]
[1694110726879,4.12366594,25911.0,25910.0,1.06817815]
[1694110727231,4.05856594,25911.0,25910.0,1.06817815]
[1694110728155,4.14689967,25911.0,25910.0,1.06817815]
[1694110728403,4.05856594,25911.0,25910.0,1.06817815]
[1694110730608,4.08779051,25911.0,25910.0,1.06817815]
[1694110730763,4.05856594,25911.0,25910.0,1.06817815]
[1694110731154,4.08226256,25911.0,25910.0,1.06817815]
[1694110731357,3.92772056,25911.0,25910.0,1.06817815]
[1694110731560,2.36097656,25911.0,25910.0,1.06817815]
[1694110731794,0.72676666,25911.0,25910.0,1.06817815]
[1694110731985,0.66676666,25911.0,25910.0,1.06817815]
[1694110732214,0.85796393,25911.0,25910.0,1.06817815]
[1694110732420,0.53319205,25911.0,25910.0,1.06817815]
[1694110732823,0.62566208,25911.0,25910.0,1.06817815]
[1694110735023,0.62566208,25911.0,25910.0,1.18849662]
[1694110735742,0.62566208,25911.0,25910.0,1.06817815]
[1694110735949,2.49385971,25911.0,25910.0,1.06817815]
[1694110736068,3.70311117,25911.0,25910.0,1.06817815]
[1694110736280,3.4719139,25911.0,25910.0,1.06817815]
[1694110736498,3.40444092,25911.0,25910.0,1.06817815]
[1694110736905,3.40443879,25911.0,25910.0,1.06817815]
[1694110737503,2.63256679,25911.0,25910.0,1.06817815]
[1694110738584,2.70075418,25911.0,25910.0,1.06817815]
[1694110738786,2.49385971,25911.0,25910.0,1.06817815]
[1694110739413,2.35882648,25911.0,25910.0,1.06817815]
[1694110739621,2.15151974,25911.0,25910.0,1.06817815]
[1694110741485,2.29022877,25911.0,25910.0,1.06817815]
[1694110741911,2.15151974,25911.0,25910.0,1.06817815]
[1694110744349,2.35872995,25911.0,25910.0,1.06817815]
[1694110745846,2.40497826,25911.0,25910.0,1.06817815]
[1694110751605,2.17378099,25911.0,25910.0,1.06817815]
[1694110759427,2.14543743,25911.0,25910.0,1.06817815]
[1694110773620,2.42303914,25911.0,25910.0,1.06817815]
[1694110776593,2.7470662,25911.0,25910.0,1.06817815]
[1694110777020,2.84598477,25911.0,25910.0,1.06817815]
[1694110777235,2.49369627,25911.0,25910.0,1.06817815]
[1694110777417,2.45175957,25911.0,25910.0,1.06817815]
[1694110778004,2.42351912,25911.0,25910.0,1.06817815]
[1694110781965,2.45204257,25911.0,25910.0,1.06817815]
[1694110782997,2.45204257,25911.0,25910.0,1.0689851]
[1694110783224,2.84165549,25911.0,25910.0,1.0689851]
[1694110783427,3.71014104,25911.0,25910.0,1.0689851]
[1694110783643,2.86809678,25911.0,25910.0,1.0689851]
[1694110785059,2.47848386,25911.0,25910.0,1.0689851]
[1694110785673,1.70661186,25911.0,25910.0,1.0689851]
[1694110785871,1.40000672,25911.0,25910.0,1.0689851]
[1694110786303,0.67187556,25911.0,25910.0,1.0689851]
[1694110786506,1.37356543,25911.0,25910.0,1.0689851]
[1694110786711,1.68017057,25911.0,25910.0,1.0689851]
[1694110787116,0.60169343,25911.0,25910.0,1.0689851]
[1694110787322,1.65167189,25911.0,25910.0,1.0689851]
[1694110787533,1.95827703,25911.0,25910.0,1.0689851]
[1694110788791,1.18640503,25911.0,25910.0,1.14961599]
[1694110789010,0.87979989,25911.0,25910.0,1.14961599]
[1694110790490,0.87979989,25911.0,25910.0,1.14461599]
[1694110791339,0.21121021,25911.0,25910.0,1.8358871]
[1694110791551,0.4211048,25911.0,25910.0,3.3796911]
[1694110791764,0.18937905,25911.0,25910.0,3.4796911]
[1694110791986,0.14299686,25911.0,25910.0,3.5177611]
[1694110792195,0.23565948,25911.0,25910.0,3.5254811]
[1694110792845,0.09666262,25911.0,25910.0,3.5254811]
[1694110793054,0.09466262,25911.0,25910.0,3.5094811]
[1694110793260,0.09466262,25911.0,25910.0,3.5054811]
[1694110793691,0.09666262,25911.0,25910.0,3.5244811]
[1694110793871,0.09466262,25911.0,25910.0,3.5054811]
[1694110794136,0.09866262,25911.0,25910.0,3.5544811]
[1694110794787,0.09866262,25911.0,25910.0,3.5267611]
[1694110794788,0.006,25911.0,25910.0,3.5267611]
[1694110796081,0.006,25911.0,25910.0,3.9928611]
[1694110796329,0.006,25911.0,25910.0,5.52961632]
[1694110796541,0.006,25911.0,25910.0,5.52685632]
[1694110796752,0.006,25911.0,25910.0,5.52691632]
[1694110796966,0.004,25911.0,25910.0,5.50237632]
[1694110797179,0.004,25911.0,25910.0,5.54082778]
[1694110797389,0.09266262,25916.0,25915.0,0.02]
[1694110797614,0.09266262,25916.0,25915.0,2.73683911]
[1694110797828,0.09266262,25916.0,25915.0,2.58141782]
[1694110798010,0.09266262,25916.0,25915.0,2.60630866]
[1694110798671,0.09266262,25917.0,25915.0,2.60630866]
[1694110798906,0.09266262,25917.0,25916.0,0.1192]
[1694110799114,0.09266262,25917.0,25916.0,1.662648]
[1694110800159,0.09266262,25917.0,25916.0,1.69147533]
[1694110800504,0.09466262,25917.0,25916.0,1.69147533]
[1694110800939,0.004,25917.0,25916.0,1.69147533]
[1694110801558,0.004,25917.0,25916.0,2.46319933]
[1694110802379,0.004,25917.0,25916.0,2.56319933]
[1694110805659,0.002,25917.0,25916.0,2.56319933]
[1694110806070,0.002,25917.0,25916.0,2.56919933]
[1694110806710,0.002,25917.0,25916.0,2.59408357]
[1694110806908,0.00193,25919.0,25916.0,2.59408357]
[1694110807110,0.00193,25919.0,25918.0,1.662528]
[1694110807756,0.00193,25920.0,25918.0,2.434192]
[1694110807922,0.00193,25921.0,25919.0,0.1392]
[1694110808125,0.00193,25921.0,25920.0,1.662408]
[1694110809157,0.00393,25921.0,25920.0,1.662408]
[1694110809564,0.00393,25921.0,25920.0,2.434012]
[1694110809936,0.002,25921.0,25920.0,2.434012]
[1694110810148,0.002,25921.0,25920.0,2.535012]
[1694110810149,0.012,25921.0,25920.0,2.535012]
[1694110810603,0.012,25921.0,25920.0,2.7333875]
[1694110811050,0.01,25921.0,25920.0,2.7333875]
[1694110811228,0.00193,25923.0,25921.0,0.02]
[1694110811447,0.00193,25923.0,25922.0,1.66229]
[1694110813819,0.00393,25923.0,25922.0,1.66229]
[1694110814223,0.00593,25923.0,25922.0,1.66229]
[1694110815773,0.00593,25923.0,25922.0,1.85953213]
[1694110817474,0.00593,25923.0,25922.0,1.08798713]
[1694110817684,0.41703576,25923.0,25920.0,0.791604]
[1694110817903,0.50968322,25922.0,25920.0,0.02]
[1694110818546,0.02421009,25921.0,25920.0,0.02]
[1694110818754,0.41276331,25921.0,25920.0,0.02]
[1694110819439,0.41276331,25921.0,25920.0,0.026]
[1694110819855,0.41276331,25921.0,25920.0,0.02]
[1694110820265,0.41376331,25921.0,25920.0,0.035]
[1694110820474,0.41376331,25921.0,25920.0,0.041]
[1694110820926,0.41376331,25921.0,25920.0,0.035]
[1694110821063,0.41376331,25921.0,25920.0,0.05]
[1694110821856,0.41376331,25921.0,25920.0,0.0748288]
[1694110823371,0.41276331,25921.0,25920.0,0.0598288]
[1694110823572,0.41276331,25921.0,25920.0,0.0448288]
[1694110823783,0.42676331,25921.0,25920.0,0.0458288]
[1694110823994,0.42876331,25921.0,25920.0,0.0468288]
[1694110824209,0.42676331,25921.0,25920.0,0.0458288]
[1694110824420,0.42976331,25921.0,25920.0,0.0458288]
[1694110824632,0.41576331,25921.0,25920.0,0.0448288]
[1694110825224,0.41276331,25921.0,25920.0,0.0448288]
[1694110825638,0.42576331,25921.0,25920.0,0.0458288]
[1694110826163,0.42576331,25921.0,25920.0,0.0258288]
[1694110826374,0.41576331,25921.0,25920.0,0.0248288]
[1694110827094,0.41576331,25921.0,25920.0,0.0258288]
[1694110827095,0.42576331,25921.0,25920.0,0.0258288]
[1694110830861,0.42769331,25921.0,25920.0,0.0258288]
[1694110831550,0.01493,25921.0,25920.0,0.7974328]
[1694110831790,0.01493,25921.0,25920.0,2.65380038]
[1694110832004,0.013,25921.0,25920.0,2.80922167]
[1694110832230,0.013,25921.0,25920.0,2.65380038]
[1694110832455,0.013,25921.0,25920.0,2.93107038]
[1694110833124,0.013,25921.0,25920.0,2.7371108]
[1694110833340,0.013,25921.0,25920.0,3.1632108]
[1694110833601,0.013,25921.0,25920.0,3.4632108]
[1694110833865,0.01,25921.0,25920.0,3.50172226]
[1694110834321,0.01,25921.0,25920.0,3.51672226]
[1694110834535,0.01,25921.0,25920.0,3.50172226]
[1694110834965,0.01,25921.0,25920.0,3.52572226]
[1694110835437,0.021,25921.0,25920.0,3.52672226]
[1694110835825,0.09213587,25926.0,25923.0,0.12]
[1694110835998,0.09213587,25926.0,25925.0,0.1192]
[1694110836201,0.16227979,25927.0,25925.0,0.890656]
[1694110836202,0.25441566,25927.0,25925.0,0.890656]
[1694110836381,0.25441566,25927.0,25926.0,0.1192]
[1694110836589,0.34654843,25927.0,25926.0,0.771426]
[1694110836793,0.14013381,25927.0,25926.0,2.46038234]
[1694110837911,0.14020381,25927.0,25926.0,2.46238234]
[1694110838209,0.14020381,25927.0,25926.0,2.55828396]
[1694110838436,0.002,25927.0,25926.0,2.55828396]
[1694110838854,0.23056908,25928.0,25926.0,2.55628396]
[1694110839056,0.23056908,25928.0,25927.0,0.1192]
[1694110839271,0.23056908,25928.0,25927.0,2.433388]
[1694110839532,0.09236527,25928.0,25927.0,2.433388]
[1694110839704,0.23056908,25928.0,25927.0,2.433388]
[1694110839910,0.13820381,25928.0,25927.0,2.433388]
[1694110840060,0.15120381,25928.0,25927.0,2.433388]
[1694110840673,0.32447245,25928.0,25927.0,2.434388]
[1694110840896,0.33747245,25928.0,25927.0,2.435388]
[1694110841440,0.15320381,25928.0,25927.0,2.435388]
[1694110841554,0.33747245,25928.0,25927.0,2.435388]
[1694110841995,0.15320381,25928.0,25927.0,2.435388]
[1694110843399,0.24556405,25928.0,25927.0,2.435388]
[1694110843875,0.15320381,25928.0,25927.0,2.435388]
[1694110845567,0.24556321,25928.0,25927.0,2.435388]
[1694110845817,0.15320381,25928.0,25927.0,2.435388]
[1694110850359,0.10735137,25928.0,25927.0,2.435388]
[1694110851531,0.10735137,25928.0,25927.0,2.46224991]
[1694110856333,0.12970923,25928.0,25927.0,2.46224991]
[1694110859438,0.03735786,25928.0,25927.0,2.46224991]
[1694110859692,0.12969207,25928.0,25927.0,2.46224991]
[1694110863418,0.13162207,25928.0,25927.0,2.46224991]
[1694110865247,0.12969207,25928.0,25927.0,2.46224991]
[1694110865472,0.13162207,25928.0,25927.0,2.46224991]
[1694110865693,0.12969207,25928.0,25927.0,2.46224991]
[1694110865930,0.13162207,25928.0,25927.0,2.46224991]
[1694110866711,0.10926421,25928.0,25927.0,2.46224991]
[1694110869314,0.24776552,25928.0,25927.0,2.46224991]
[1694110870342,0.15543131,25928.0,25927.0,2.46224991]
[1694110872384,0.34009973,25928.0,25927.0,2.46224991]
[1694110872560,0.34009973,25928.0,25927.0,2.34304991]
[1694110873140,0.34009973,25928.0,25927.0,2.34377803]
[1694110874277,0.41464078,25928.0,25927.0,2.34377803]
[1694110875409,0.64547631,25928.0,25927.0,2.34377803]
[1694110876046,0.34032887,25928.0,25927.0,2.34377803]
[1694110876285,0.64507808,25928.0,25927.0,2.34377803]
[1694110877541,0.46040966,25928.0,25927.0,2.34377803]
[1694110878425,0.22957413,25928.0,25927.0,2.34377803]
[1694110882549,0.22957413,25928.0,25927.0,2.46297803]
[1694110886491,0.46113316,25928.0,25927.0,2.46297803]
[1694110888899,0.22957413,25928.0,25927.0,2.46297803]
[1694110889270,0.24847029,25928.0,25927.0,2.46297803]
[1694110889476,0.20022483,25928.0,25927.0,2.94714803]
[1694110889683,0.015,25928.0,25927.0,3.02714803]
[1694110889959,0.015,25928.0,25927.0,3.32714803]
[1694110890172,0.015,25928.0,25927.0,3.80152125]
[1694110890315,0.015,25928.0,25927.0,3.77421271]
[1694110890524,0.09260949,25931.0,25930.0,0.06]
[1694110890718,0.09260949,25931.0,25930.0,3.264428]
[1694110890719,0.2315247,25931.0,25930.0,3.264428]
[1694110891095,0.2315247,25931.0,25930.0,3.29126049]
[1694110891313,0.09260949,25931.0,25930.0,3.29126049]
[1694110892764,0.09260949,25931.0,25930.0,3.32748707]
[1694110893197,0.09460949,25931.0,25930.0,3.32748707]
[1694110893604,0.09660949,25931.0,25930.0,3.32748707]
[1694110895273,0.004,25931.0,25930.0,3.32748707]
[1694110906444,0.004,25931.0,25930.0,3.73358707]
[1694110907084,0.004,25931.0,25930.0,4.05165707]
[1694110907294,0.004,25931.0,25930.0,4.01543049]
[1694110907739,0.004,25931.0,25930.0,4.40398371]
[1694110907955,0.004,25931.0,25930.0,4.50398371]
[1694110908603,0.002,25931.0,25930.0,4.70687396]
[1694110908808,0.002,25931.0,25930.0,4.71287396]
[1694110909288,0.002,25931.0,25930.0,4.70687396]
[1694110909717,0.12036653,25935.0,25933.0,0.04]
[1694110909940,0.12036653,25935.0,25934.0,2.432764]
[1694110910153,0.12036653,25935.0,25934.0,2.45953246]
[1694110910425,0.09260949,25935.0,25934.0,2.45953246]
[1694110911072,0.003,25935.0,25934.0,2.45953246]
[1694110911498,0.014,25935.0,25934.0,2.56335836]
[1694110911958,0.014,25935.0,25934.0,2.58335836]
[1694110913362,0.014,25935.0,25934.0,4.12444368]
[1694110913572,0.014,25935.0,25934.0,4.42444368]
[1694110913821,0.014,25935.0,25934.0,4.50444368]
[1694110913989,0.014,25935.0,25934.0,4.77065514]
[1694110914339,0.011,25935.0,25934.0,4.76195514]
[1694110914558,0.27488338,25942.0,25940.0,3.08404]
[1694110914747,0.00193,25941.0,25940.0,3.08404]
[1694110914954,0.14084521,25941.0,25940.0,0.77101]
[1694110915088,0.32607004,25941.0,25940.0,0.77101]
[1694110915289,0.23310239,25941.0,25940.0,0.77101]
[1694110915493,0.09418718,25941.0,25940.0,0.77101]
[1694110915752,0.09418718,25941.0,25940.0,2.31303]
[1694110916350,0.11870969,25941.0,25940.0,2.33703]
[1694110916551,0.02645251,25941.0,25940.0,2.33703]
[1694110916801,0.11870969,25941.0,25940.0,2.33703]
[1694110917180,0.11870969,25941.0,25940.0,2.36103]
[1694110917384,0.02645251,25941.0,25940.0,2.36103]
[1694110917581,0.11870969,25941.0,25940.0,2.36103]
[1694110918396,0.02645251,25941.0,25940.0,2.36103]
[1694110918600,0.11870969,25941.0,25940.0,2.36103]
[1694110918994,0.02645251,25941.0,25940.0,2.36103]
[1694110923701,0.00293,25941.0,25940.0,2.36103]
[1694110926814,0.00293,25941.0,25940.0,2.38770789]
[1694110930320,0.09518718,25941.0,25940.0,2.38770789]
[1694110932545,0.00293,25941.0,25940.0,2.38770789]
[1694110935591,0.09518718,25941.0,25940.0,2.38770789]
[1694110935830,0.00293,25941.0,25940.0,2.38770789]
[1694110935964,0.09518718,25941.0,25940.0,2.38770789]
[1694110936401,0.00293,25941.0,25940.0,2.38770789]
[1694110937580,0.09518718,25941.0,25940.0,2.38770789]
[1694110939457,0.00293,25941.0,25940.0,2.38770789]
[1694110941282,0.09521745,25941.0,25940.0,2.38770789]
[1694110945616,0.09521745,25941.0,25940.0,0.07467789]
[1694110945617,0.84194834,25941.0,25940.0,0.07467789]
[1694110945822,2.39853343,25941.0,25940.0,0.07467789]
[1694110946058,0.38177837,25941.0,25940.0,0.07467789]
[1694110946198,0.00293,25941.0,25940.0,2.57070491]
[1694110946597,0.00193,25941.0,25940.0,2.54677435]
[1694110946823,0.01493,25941.0,25940.0,2.57733187]
[1694110947165,0.01493,25941.0,25940.0,2.67253187]
[1694110947400,0.00193,25941.0,25940.0,2.67053187]
[1694110947607,0.00893,25941.0,25940.0,2.69653187]
[1694110947784,0.00293,25941.0,25940.0,2.69453187]
[1694110948125,0.00293,25941.0,25940.0,2.71953187]
[1694110948540,0.4838049,25941.0,25940.0,0.17175752]
[1694110948780,0.71463125,25941.0,25940.0,0.05255752]
[1694110948982,0.60428606,25941.0,25940.0,0.05255752]
[1694110949191,0.60428606,25941.0,25940.0,0.05355752]
[1694110949192,0.79523702,25941.0,25940.0,0.05355752]
[1694110949400,0.79623702,25941.0,25940.0,0.07755752]
[1694110949614,1.23673843,25941.0,25940.0,0.07755752]
[1694110949820,0.70263418,25941.0,25940.0,0.07755752]
[1694110950024,0.95804141,25941.0,25940.0,0.05355752]
[1694110950228,0.72809666,25941.0,25940.0,0.07755752]
[1694110950433,0.70263418,25941.0,25940.0,0.05255752]
[1694110950875,0.70263418,25941.0,25940.0,0.07655752]
[1694110951076,1.05110494,25941.0,25940.0,0.07655752]
[1694110952288,1.05110494,25941.0,25940.0,0.02855752]
[1694110952289,3.76824694,25941.0,25940.0,0.02855752]
[1694110952463,3.83410694,25941.0,25940.0,0.02855752]
[1694110952669,3.76924694,25941.0,25940.0,0.02855752]
[1694110952876,3.76924694,25941.0,25934.0,1.542376]
[1694110953098,0.09243286,25936.0,25934.0,1.542376]
[1694110953303,0.09243286,25936.0,25934.0,1.582376]
[1694110953304,0.24978415,25936.0,25934.0,1.582376]
[1694110953509,0.09436286,25936.0,25934.0,2.353564]
[1694110954154,0.09436286,25936.0,25934.0,2.313564]
[1694110954360,0.00193,25935.0,25934.0,2.313564]
[1694110955395,0.09436286,25935.0,25934.0,2.313564]
[1694110955805,0.09436286,25935.0,25934.0,2.338564]
[1694110956016,0.09436286,25935.0,25934.0,2.313564]
[1694110956259,0.09436286,25935.0,25934.0,2.338564]
[1694110956493,0.09436286,25935.0,25934.0,2.363564]
[1694110956695,0.09436286,25935.0,25934.0,2.36270691]
[1694110957719,0.09536286,25935.0,25934.0,2.38770691]
[1694110959454,0.09536286,25935.0,25934.0,1.61651891]
[1694110965239,0.09526848,25935.0,25934.0,2.38770691]
[1694110967647,0.09526848,25935.0,25934.0,0.07414291]
[1694110967648,0.5638217,25935.0,25934.0,0.07414291]
[1694110967864,3.25340184,25935.0,25934.0,0.07414291]
[1694110968071,0.80690922,25935.0,25934.0,0.07414291]
[1694110968283,1.03802837,25935.0,25934.0,0.05]
[1694110968492,0.80690922,25935.0,25934.0,0.05]
[1694110968716,1.80818509,25935.0,25934.0,0.02414291]
[1694110968923,1.80918509,25935.0,25930.0,0.771283]
[1694110969143,1.80918509,25935.0,25934.0,0.002]
[1694110969144,1.27093545,25935.0,25934.0,0.002]
[1694110969359,1.93773997,25935.0,25930.0,1.542569]
[1694110969583,1.93773997,25935.0,25927.0,0.15992812]
[1694110969584,0.00183562,25928.0,25927.0,0.00072812]
[1694110969796,0.00183562,25928.0,25927.0,0.77210912]
[1694110970009,0.00183562,25928.0,25927.0,2.31490112]
[1694110970458,0.00183562,25928.0,25927.0,1.54350512]
[1694110970687,0.00183562,25928.0,25927.0,0.77210912]
[1694110970903,0.00183562,25928.0,25927.0,1.54350512]
[1694110971254,0.00283562,25928.0,25927.0,1.56850512]
[1694110971684,0.00283562,25928.0,25927.0,1.59206639]
[1694110972969,0.00283562,25928.0,25927.0,0.82067039]
[1694110974026,0.00383562,25928.0,25927.0,0.84567039]
[1694110974970,0.00383562,25928.0,25927.0,0.07428939]
[1694110977728,0.02542734,25928.0,25927.0,0.07428939]
[1694110980514,0.02442734,25928.0,25927.0,0.04928939]
[1694110980707,0.02642734,25928.0,25927.0,0.07428939]
[1694110981116,0.02542734,25928.0,25927.0,0.04928939]
[1694110981286,0.02642734,25928.0,25927.0,0.07428939]
[1694110981724,0.66494099,25928.0,25927.0,0.07428939]
[1694110981923,3.09823899,25928.0,25927.0,0.07428939]
[1694110982096,0.53418056,25928.0,25927.0,0.07428939]
[1694110982298,0.41498056,25928.0,25927.0,0.07428939]
[1694110982471,0.41498056,25928.0,25927.0,0.04928939]
[1694110982692,0.41398056,25928.0,25927.0,0.04928939]
[1694110983053,0.42598056,25928.0,25927.0,0.05028939]
[1694110983257,0.42398056,25928.0,25927.0,0.02528939]
[1694110983450,0.44198056,25928.0,25927.0,0.02628939]
[1694110984041,0.42398056,25928.0,25927.0,0.02528939]
[1694110984198,0.42198056,25928.0,25927.0,0.02528939]
[1694110984598,0.43398056,25928.0,25927.0,0.02628939]
[1694110984802,0.42198056,25928.0,25927.0,0.02528939]
[1694110985229,0.43098056,25928.0,25927.0,0.02528939]
[1694110998057,0.76401013,25928.0,25927.0,0.02528939]
[1694110998274,3.38083108,25928.0,25927.0,0.02528939]
[1694110998486,4.62007138,25928.0,25927.0,0.02528939]
[1694110998695,4.45742129,25928.0,25927.0,0.00172812]
[1694110998910,0.00183562,25920.0,25919.0,0.20116235]
[1694110999123,0.00183562,25920.0,25915.0,1.543486]
[1694110999124,0.00183562,25917.0,25915.0,1.543486]
[1694110999329,0.00183562,25917.0,25916.0,0.21231495]
[1694111000862,1.54522362,25917.0,25916.0,0.21231495]
[1694111001071,1.93377684,25917.0,25916.0,0.21231495]
[1694111001553,2.05297684,25917.0,25916.0,0.21231495]
[1694111001762,2.05297684,25917.0,25916.0,0.02306221]
[1694111001974,2.05297684,25917.0,25916.0,0.02406221]
[1694111002181,2.41527241,25917.0,25916.0,0.02406221]
[1694111006041,2.43755443,25917.0,25916.0,0.02406221]
[1694111006245,3.20924843,25917.0,25916.0,0.02406221]
[1694111007457,3.30924843,25917.0,25916.0,0.02406221]
[1694111008358,3.30924843,25917.0,25916.0,0.02306221]
[1694111008571,0.08,25916.0,25914.0,0.020099]
[1694111008778,2.82484784,25915.0,25914.0,0.020099]
[1694111008979,3.15577268,25915.0,25914.0,0.020099]
[1694111010208,3.18063289,25915.0,25914.0,0.020099]
[1694111010414,2.40887989,25915.0,25914.0,0.020099]
[1694111010628,0.39038884,25915.0,25914.0,0.020099]
[1694111011084,0.41538884,25915.0,25914.0,0.022099]
[1694111011705,1.20714184,25915.0,25914.0,0.024099]
[1694111013229,0.43538884,25915.0,25914.0,0.024099]
[1694111014250,1.20714184,25915.0,25914.0,0.019099]
[1694111015769,0.43538884,25915.0,25914.0,0.019099]
[1694111016767,0.43538884,25915.0,25914.0,0.04223654]
[1694111017065,1.20714184,25915.0,25914.0,0.04223654]
[1694111022373,0.43538884,25915.0,25914.0,0.14987564]
[1694111026011,0.43538884,25915.0,25914.0,0.04223654]
[1694111026233,3.19660267,25915.0,25914.0,0.04223654]
[1694111028927,2.89689737,25915.0,25914.0,0.04223654]
[1694111032713,2.91689737,25915.0,25914.0,0.04223654]
[1694111033125,2.97689737,25915.0,25914.0,0.04223654]
[1694111033304,2.94984784,25915.0,25914.0,0.04223654]
[1694111033547,2.97445843,25915.0,25914.0,0.04223654]
[1694111033751,3.36094287,25915.0,25914.0,0.04223654]
[1694111034166,3.42628287,25915.0,25914.0,0.04223654]
[1694111034346,3.36094287,25915.0,25914.0,0.04223654]
[1694111034577,3.33633228,25915.0,25914.0,0.04223654]
[1694111034987,3.33633228,25915.0,25914.0,0.019099]
[1694111035587,3.36139826,25915.0,25914.0,0.019099]
[1694111040511,1.40634184,25915.0,25914.0,0.019099]